bitfinex/quotes_ETHUSD_20250413
["timestamp","ask_amount","ask_price","bid_price","bid_amount"]
[1744550893806,12.38888,1592.7,1592.3,12.56026]
[1744550894113,12.38888,1592.7,1592.2,12.56096]
[1744550894275,12.38888,1592.7,1592.2,6.28047]
[1744550894475,12.3891,1592.6,1592.1,6.28095]
[1744550894709,13.55229,1592.5,1592.0,6.28136]
[1744550895017,7.27252,1592.5,1592.0,12.56261]
[1744550895316,0.993,1592.5,1592.2,6.28054]
[1744550895615,0.993,1592.5,1592.1,12.56198]
[1744550896014,0.993,1592.5,1592.2,6.28054]
[1744550896189,0.993,1592.5,1592.2,12.56108]
[1744550896391,0.993,1592.5,1592.1,6.28062]
[1744550896607,6.11,1592.4,1591.9,6.2818]
[1744550896790,8.175,1592.3,1592.2,6.2803]
[1744550897187,6.28303,1591.6,1591.2,0.46825266]
[1744550897502,1.5659,1591.4,1591.2,0.46825266]
[1744550897875,8.175,1591.5,1591.4,6.28377]
[1744550898097,8.175,1591.5,1591.3,6.284]
[1744550898283,8.175,1591.5,1591.4,6.28377]
[1744550898906,8.176,1591.6,1591.4,6.28366]
[1744550899085,8.176,1591.6,1591.2,6.2845]
[1744550899419,8.176,1591.6,1591.2,12.56884]
[1744550899580,1.5614,1591.5,1591.3,6.28407]
[1744550899786,3.0,1591.4,1590.9,6.28557]
[1744550900080,3.0,1591.4,1590.8,6.28608]
[1744550900287,6.11,1591.3,1591.2,6.2845]
[1744550900476,6.11,1591.4,1591.3,6.28417]
[1744550901415,6.11,1591.5,1591.4,13.11715]
[1744550901615,8.178,1591.9,1591.4,14.63775]
[1744550901817,6.11,1591.8,1591.7,6.28259]
[1744550902116,14.288,1591.9,1591.8,6.28219]
[1744550902441,8.178,1592.3,1592.2,6.28061]
[1744550902983,14.288,1592.3,1592.2,6.28061]
[1744550903300,6.11,1592.3,1592.2,6.28061]
[1744550904012,8.178,1592.5,1592.4,6.27982]
[1744550904311,8.178,1592.5,1592.2,12.56103]
[1744550905317,8.178,1592.5,1592.3,6.28018]
[1744550905715,8.178,1592.5,1592.4,6.27982]
[1744550906634,12.38952,1592.5,1592.0,6.28125]
[1744550906845,8.177,1592.4,1591.7,6.28231]
[1744550907045,6.11,1592.3,1591.8,6.910051]
[1744550907342,6.11,1592.3,1592.1,6.28074]
[1744550907546,7.6314,1592.3,1591.9,6.28159]
[1744550907715,7.6314,1592.3,1592.0,6.2812]
[1744550907918,7.6314,1592.3,1592.1,6.28083]
[1744550908434,7.6314,1592.3,1592.2,6.28061]
[1744550908435,6.11,1592.3,1592.2,6.28061]
[1744550908938,8.177,1592.5,1592.3,6.28005]
[1744550909304,8.177,1592.5,1592.1,6.83101]
[1744550909504,8.177,1592.5,1592.4,6.27982]
[1744550909838,22.15596,1592.5,1591.3,6.28417]
[1744550910000,6.28036,1592.3,1591.8,6.28214]
[1744550910198,12.39086,1592.2,1591.7,6.28252]
[1744550910615,18.67169,1592.2,1591.7,6.28252]
[1744550910830,12.39083,1592.2,1591.7,12.56492]
[1744550911134,12.39083,1592.2,1591.7,12.5648]
[1744550911639,12.39083,1592.2,1591.8,6.28215]
[1744550911807,6.11,1592.2,1591.6,6.28298]
[1744550912003,1.5895,1592.1,1591.4,0.628417]
[1744550912237,6.28195,1591.9,1591.4,6.28364]
[1744550912536,6.2822,1591.8,1591.3,6.28415]
[1744550912736,6.28445,1591.3,1590.9,12.57092]
[1744550912909,8.177,1591.2,1590.8,0.629108]
[1744550913419,8.177,1591.2,1591.1,6.28496]
[1744550914131,8.177,1591.2,1590.7,1.579]
[1744550914132,8.177,1591.2,1590.9,6.28542]
[1744550914336,8.177,1591.2,1591.0,6.28503]
[1744550914835,8.177,1591.2,1591.1,6.28496]
[1744550915210,8.177,1591.2,1591.0,12.57017]
[1744550915433,8.177,1591.2,1591.1,6.28496]
[1744550915628,8.177,1591.2,1591.0,6.28503]
[1744550916013,8.177,1591.2,1591.1,6.28496]
[1744550916949,6.11,1591.3,1591.2,6.28456]
[1744550917502,14.46211,1591.6,1591.3,6.28415]
[1744550917706,6.11,1591.5,1591.4,6.28377]
[1744550918229,6.11,1591.7,1591.6,6.28298]
[1744550921710,6.11,1591.7,1591.6,6.83298]
[1744550922343,6.11,1591.7,1591.6,8.144598]
[1744550923051,6.11,1591.7,1591.6,6.28298]
[1744550923225,6.11,1591.7,1591.2,6.28456]
[1744550923428,6.11,1591.7,1591.6,6.28298]
[1744550923616,6.11,1591.8,1591.6,6.28298]
[1744550924022,6.11,1591.8,1591.6,6.28285]
[1744550924344,6.11,1591.8,1591.6,12.56569]
[1744550924505,6.11,1591.8,1591.6,6.28284]
[1744550924712,6.11,1591.8,1591.7,6.28259]
[1744550925019,6.11,1591.9,1591.7,12.56518]
[1744550925626,6.11,1591.9,1591.7,6.28259]
[1744550925832,6.11,1591.9,1591.7,6.28233]
[1744550926026,6.11,1591.9,1591.7,12.56478]
[1744550926337,6.11,1591.9,1591.8,6.28219]
[1744550926842,14.376,1592.0,1591.9,6.2818]
[1744550927536,14.376,1592.0,1591.9,6.8318]
[1744550928043,14.376,1592.0,1591.9,8.3704]
[1744550930114,6.11,1592.0,1591.9,6.2818]
[1744550930842,6.11,1592.0,1591.9,6.8318]
[1744550931029,6.11,1592.0,1591.9,8.771382]
[1744550931570,7.7039,1592.0,1591.0,1.5808]
[1744550931716,7.87728,1591.5,1591.1,12.56953]
[1744550931915,14.375,1591.4,1591.1,6.28471]
[1744550932156,14.375,1591.4,1591.2,6.28453]
[1744550933717,14.375,1591.4,1591.1,12.56952]
[1744550933919,14.375,1591.4,1591.1,6.28471]
[1744550934121,14.375,1591.4,1591.1,12.5695]
[1744550934318,14.375,1591.4,1591.2,6.2845]
[1744550935869,14.375,1591.4,1591.2,12.56891]
[1744550936051,14.375,1591.4,1591.3,6.83417]
[1744550936419,6.11,1591.4,1591.3,6.83417]
[1744550936750,14.377,1591.8,1591.7,6.28259]
[1744550937973,14.377,1591.8,1591.6,6.28264]
[1744550938678,14.377,1591.8,1591.5,6.2832]
[1744550939576,14.377,1591.8,1591.5,12.5664]
[1744550939777,14.377,1591.8,1591.6,6.28294]
[1744550939948,14.377,1591.8,1591.6,6.28286]
[1744550940284,14.377,1591.8,1591.7,6.28259]
[1744550941145,14.377,1591.8,1591.6,7.067546]
[1744550941549,14.377,1591.8,1591.5,1.5646]
[1744550941550,14.377,1591.8,1591.5,6.28317]
[1744550941853,20.6592,1591.8,1591.5,6.28317]
[1744550942060,20.6592,1591.8,1591.5,12.56643]
[1744550942460,14.377,1591.8,1591.6,6.28283]
[1744550942672,20.6592,1591.8,1591.5,6.28331]
[1744550943446,20.6592,1591.8,1591.5,12.56653]
[1744550943687,14.377,1591.8,1591.5,12.56643]
[1744550943886,14.377,1591.8,1591.5,6.28321]
[1744550944588,14.377,1591.8,1591.5,12.56647]
[1744550944886,14.377,1591.8,1591.5,1.256647]
[1744550945188,14.377,1591.8,1591.7,6.28259]
[1744550945890,14.377,1591.8,1591.7,6.34540735]
[1744550946056,14.377,1591.8,1591.7,6.28259]
[1744550946405,4.12967858,1592.4,1592.3,6.83022]
[1744550946579,4.12967858,1592.4,1592.3,7.84662]
[1744550946897,4.12967858,1592.4,1592.3,6.28022]
[1744550948555,5.43366627,1592.8,1592.4,6.27948]
[1744550948894,5.43366627,1592.8,1592.4,6.27962]
[1744550948895,5.990595,1592.7,1592.4,6.27962]
[1744550949081,12.269435,1592.7,1592.3,14.08142]
[1744550949389,5.990595,1592.7,1592.5,6.27941]
[1744550949594,5.990595,1592.7,1592.6,6.27904]
[1744550949889,5.990595,1593.0,1592.8,6.27818]
[1744550950264,5.990595,1593.0,1592.7,6.27859]
[1744550950590,6.27786,1592.9,1592.5,6.2793]
[1744550950800,6.27786,1592.9,1592.5,12.55855]
[1744550951090,5.990595,1593.0,1592.7,6.27851]
[1744550951309,12.268095,1593.0,1592.7,6.27851]
[1744550951588,12.268305,1593.0,1592.6,6.3416928]
[1744550951790,18.546075,1593.0,1592.6,6.27891]
[1744550952297,12.268275,1593.0,1592.6,12.5577]
[1744550952478,18.546055,1593.0,1592.6,6.27885]
[1744550952689,12.268075,1593.0,1592.4,0.55]
[1744550952895,5.990595,1593.0,1592.7,12.557]
[1744550953088,5.990595,1593.0,1592.8,6.27821]
[1744550953291,5.990595,1593.0,1592.9,6.34062371]
[1744550953494,5.990595,1593.0,1592.9,6.82785]
[1744550953695,5.990595,1593.0,1592.9,6.27785]
[1744550954705,5.990595,1593.0,1592.9,0.55]
[1744550954911,5.990595,1593.0,1592.9,7.665917]
[1744550955074,60.16632,1593.3,1593.0,6.27716]
[1744550955272,6.010595,1593.4,1592.8,7.83084]
[1744550955481,6.010595,1593.4,1593.2,6.27661]
[1744550956075,6.010595,1593.4,1593.1,12.55398]
[1744550956695,6.010595,1593.4,1593.2,6.27646]
[1744550956896,12.286705,1593.4,1593.0,6.82731]
[1744550957210,6.27651,1593.3,1592.9,12.55546]
[1744550957573,12.55301,1593.3,1592.9,12.55546]
[1744550957772,6.2767,1593.2,1592.8,8.38081]
[1744550957979,6.27709,1593.1,1592.8,6.27821]
[1744550958174,7.88609,1593.1,1592.7,6.27863]
[1744550958514,6.27837,1592.8,1592.4,6.27955]
[1744550958823,5.990595,1592.7,1592.4,6.27955]
[1744550959111,12.269405,1592.7,1592.4,6.27981]
[1744550959478,5.990595,1592.7,1592.4,6.27963]
[1744550959695,5.990595,1592.7,1592.6,6.27904]
[1744550960281,5.990595,1592.7,1592.5,0.55]
[1744550960481,5.990595,1592.7,1592.5,6.82941]
[1744550960675,5.990595,1592.7,1592.6,6.27904]
[1744550960911,5.990595,1592.7,1592.4,6.27981]
[1744550961100,12.269255,1592.7,1592.3,12.5603]
[1744550961302,12.269255,1592.7,1592.4,6.27977]
[1744550961303,5.990595,1592.7,1592.4,6.27977]
[1744550961599,5.990595,1593.0,1592.9,6.82785]
[1744550963535,0.02,1593.4,1593.0,0.55]
[1744550963742,0.02,1593.4,1593.3,6.27628]
[1744550964303,0.02,1593.4,1593.1,6.277]
[1744550964539,0.02,1593.4,1593.1,12.55393]
[1744550964909,0.02,1593.4,1593.1,6.27689]
[1744550965109,0.02,1593.4,1593.2,12.55291]
[1744550965309,0.02,1593.4,1593.2,6.27636]
[1744550965627,0.02,1593.4,1593.3,6.33903454]
[1744550965822,0.02,1593.4,1593.3,6.27628]
[1744550966224,0.02,1593.4,1593.3,9.615744]
[1744550968831,2.78327127,1593.9,1593.6,6.2749]
[1744550969111,12.54726,1594.0,1593.6,12.54984]
[1744550969306,8.128,1594.1,1593.5,6.27544]
[1744550969307,6.27405,1593.9,1593.5,6.27544]
[1744550969513,6.27405,1593.9,1593.5,12.55088]
[1744550969707,6.27405,1593.9,1593.4,6.27564]
[1744550969708,7.81105,1593.8,1593.4,6.27564]
[1744550969922,7.81105,1593.8,1593.5,6.27534]
[1744550970248,1.5367,1593.8,1593.5,12.55068]
[1744550971037,1.5367,1593.8,1593.6,6.27505]
[1744550971239,1.5367,1593.8,1593.4,6.27582]
[1744550971240,7.6467,1593.8,1593.4,6.27582]
[1744550971539,7.6467,1593.8,1593.5,6.2753]
[1744550971711,6.11,1593.8,1593.6,6.27491]
[1744550971911,6.11,1593.8,1593.6,12.54988]
[1744550972112,56.63627127,1594.2,1593.9,6.2737]
[1744550972306,62.90916127,1594.2,1593.9,6.2737]
[1744550972520,56.63627127,1594.2,1593.9,12.54743]
[1744550972723,56.63627127,1594.2,1594.0,6.2735]
[1744550972921,56.63627127,1594.2,1593.9,6.2737]
[1744550973143,56.63627127,1594.2,1593.6,6.27504]
[1744550973144,1.5367,1594.0,1593.6,6.27504]
[1744550973321,1.5367,1594.0,1593.7,6.27441]
[1744550973638,1.5367,1594.0,1593.7,12.54922]
[1744550973854,1.5367,1594.0,1593.8,6.27431]
[1744550974022,6.11,1594.1,1593.8,6.27414]
[1744550974224,61.4806,1594.2,1594.0,6.2735]
[1744550974420,61.4806,1594.2,1593.9,6.2736]
[1744550974745,67.75336,1594.2,1593.9,6.2736]
[1744550974940,52.4806,1594.2,1593.9,6.27391]
[1744550975150,52.4806,1594.2,1593.9,6.27367]
[1744550975360,52.4806,1594.2,1593.9,12.54746]
[1744550976568,52.4806,1594.2,1593.9,6.27367]
[1744550976866,58.75369,1594.2,1593.8,6.27421]
[1744550977163,58.75369,1594.2,1593.8,6.27414]
[1744550977164,6.27325,1594.1,1593.8,6.27414]
[1744550977454,6.27368,1594.0,1593.6,12.54984]
[1744550977622,12.38368,1594.0,1593.6,12.54973]
[1744550977832,20.50868,1594.0,1593.6,12.54973]
[1744550978026,20.50868,1594.0,1593.6,12.54979]
[1744550978247,14.235,1594.0,1593.7,6.27461]
[1744550978556,20.50853,1594.0,1593.7,6.27442]
[1744550978719,14.235,1594.0,1593.7,6.27442]
[1744550978926,6.27471,1593.7,1593.3,6.27628]
[1744550979145,12.54888,1593.8,1593.4,6.27574]
[1744550979347,6.27472,1593.7,1593.4,6.27574]
[1744550979936,20.51028,1593.6,1593.2,6.27652]
[1744550980668,20.51028,1593.6,1593.2,12.55306]
[1744550980846,20.51028,1593.6,1593.2,6.27652]
[1744550981170,26.78573,1593.6,1593.2,6.27652]
[1744550981472,14.235,1593.6,1593.3,6.27604]
[1744550981832,14.235,1593.6,1593.0,6.27725]
[1744550981833,6.27604,1593.4,1593.0,6.27725]
[1744550982048,1.6387,1593.3,1592.9,6.30824]
[1744550982256,7.89,1593.2,1592.9,12.58608]
[1744550982450,14.0,1593.2,1592.9,12.58594]
[1744550982652,14.0,1593.2,1592.9,6.3081]
[1744550983060,14.0,1593.2,1592.9,0.0304]
[1744550983369,6.27746,1593.0,1592.9,0.0304]
[1744550983544,14.03456,1593.0,1592.9,0.0304]
[1744550983746,17.03456,1593.0,1592.9,0.0304]
[1744550998678,14.03456,1593.0,1592.9,0.0304]
[1744550998851,20.28146,1593.0,1592.9,0.0304]
[1744551000161,14.004,1593.0,1592.9,0.0304]
[1744551000363,14.004,1593.0,1592.9,2.310253]
[1744551000764,20.28146,1593.0,1592.9,0.0304]
[1744551001055,21.91966,1593.0,1592.9,0.0304]
[1744551001256,24.91966,1593.0,1592.9,0.0304]
[1744551002972,6.11,1593.0,1592.9,0.0304]
[1744551003291,14.005,1593.1,1592.9,6.30825]
[1744551003453,14.005,1593.1,1593.0,0.630825]
[1744551003658,14.005,1593.1,1592.9,0.0304]
[1744551003659,20.28206,1593.1,1592.9,0.0304]
[1744551004059,14.005,1593.1,1592.9,6.30809]
[1744551004278,14.005,1593.1,1593.0,7.92576]
[1744551004682,53.828,1593.4,1593.3,6.27628]
[1744551005274,60.10388,1593.4,1593.1,6.27703]
[1744551005470,53.828,1593.4,1593.2,0.627703]
[1744551005681,53.828,1593.4,1593.3,6.27628]
[1744551005989,53.828,1593.4,1593.2,6.27667]
[1744551006159,53.828,1593.4,1593.2,6.27645]
[1744551006763,53.828,1593.4,1593.3,6.27628]
[1744551007456,6.11,1593.5,1593.4,7.92418]
[1744551007671,6.11,1593.5,1593.4,9.399226]
[1744551008591,6.11,1593.5,1593.4,3.123346]
[1744551009295,12.38549,1593.5,1593.4,3.123346]
[1744551009472,12.38549,1593.5,1593.4,1.6483]
[1744551009675,6.27592,1593.4,1593.2,1.6297]
[1744551009872,6.11,1593.5,1593.2,7.9061]
[1744551010074,12.38573,1593.5,1593.2,1.6297]
[1744551010276,12.38573,1593.5,1593.2,7.90636]
[1744551010475,12.38573,1593.5,1593.3,0.790636]
[1744551010664,6.11,1593.5,1593.3,0.790636]
[1744551011066,12.38553,1593.5,1593.3,0.790636]
[1744551011368,18.66134,1593.5,1593.3,0.790636]
[1744551011597,12.38553,1593.5,1593.2,1.6297]
[1744551011800,12.38553,1593.5,1593.2,7.90635]
[1744551012300,12.38553,1593.5,1593.2,7.90619]
[1744551012904,18.66128,1593.5,1593.2,1.6297]
[1744551013110,6.27591,1593.4,1593.2,1.6297]
[1744551013277,6.27591,1593.4,1593.2,2.420375]
[1744551013793,12.38557,1593.5,1593.2,2.420375]
[1744551014108,6.11,1593.5,1593.2,8.696875]
[1744551014308,6.11,1593.5,1593.3,12.55232]
[1744551014508,6.11,1593.5,1593.3,6.27616]
[1744551014681,6.11,1593.5,1593.3,1.4973135]
[1744551015087,12.38573,1593.5,1593.3,1.4973135]
[1744551015488,6.11,1593.5,1593.3,1.4973135]
[1744551015683,6.11,1593.5,1593.3,7.7734235]
[1744551016186,6.11,1593.5,1593.3,1.4973135]
[1744551016382,6.11,1593.5,1593.3,7.7733835]
[1744551016611,6.11,1593.5,1593.3,0.06274926]
[1744551016822,6.11,1593.5,1593.3,6.27624]
[1744551017325,6.11,1593.5,1593.3,6.27615]
[1744551017477,7.894,1593.7,1593.4,6.82588]
[1744551017672,7.894,1593.7,1593.5,2.326988]
[1744551017919,7.894,1593.7,1593.5,8.602458]
[1744551018617,7.894,1593.7,1593.5,8.602348]
[1744551018824,7.894,1593.7,1593.6,6.2751]
[1744551019004,7.894,1593.7,1593.5,2.326988]
[1744551019211,7.894,1593.7,1593.5,1.6444]
[1744551019212,14.16882,1593.7,1593.5,1.6444]
[1744551019524,7.894,1593.7,1593.5,1.70714681]
[1744551019679,7.894,1593.7,1593.5,1.6444]
[1744551019879,7.894,1593.7,1593.5,7.91977]
[1744551020115,7.894,1593.7,1593.6,6.2751]
[1744551020317,12.38399,1593.9,1593.6,13.969527]
[1744551020606,6.11,1593.9,1593.6,7.694427]
[1744551020807,12.38403,1593.9,1593.6,7.694427]
[1744551021007,12.38403,1593.9,1593.6,13.969367]
[1744551021308,12.38408,1593.9,1593.6,1.419487]
[1744551021715,18.6583,1593.9,1593.6,1.419487]
[1744551021880,12.38408,1593.9,1593.6,7.694557]
[1744551022282,6.27446,1593.8,1593.6,1.419487]
[1744551022821,12.38408,1593.9,1593.6,7.694577]
[1744551023028,12.38408,1593.9,1593.6,7.694437]
[1744551023397,6.11,1593.9,1593.7,0.7694437]
[1744551023579,6.11,1593.9,1593.7,7.0441237]
[1744551023779,12.38397,1593.9,1593.7,0.7694437]
[1744551024175,18.65817,1593.9,1593.7,0.7694437]
[1744551024386,12.38397,1593.9,1593.6,6.27498]
[1744551024585,18.65805,1593.9,1593.6,6.27498]
[1744551024930,6.27432,1593.8,1593.5,1.6444]
[1744551025109,6.27483,1593.7,1593.5,1.6444]
[1744551026334,12.5488,1593.8,1593.5,1.6444]
[1744551026480,6.11,1593.9,1593.7,6.27469]
[1744551026688,6.11,1593.9,1593.7,7.529651]
[1744551026994,6.11,1593.9,1593.7,1.254961]
[1744551027192,6.11,1593.9,1593.8,1.531]
[1744551028916,6.11,1593.9,1593.8,7.80531]
[1744551029122,6.11,1593.9,1593.8,1.531]
[1744551029317,20.17638,1594.0,1593.8,1.531]
[1744551029318,26.28645,1594.0,1593.8,1.531]
[1744551029621,20.01267,1594.0,1593.8,1.531]
[1744551029815,13.739,1594.0,1593.8,7.80528]
[1744551030118,13.739,1594.0,1593.9,0.780528]
[1744551030323,13.739,1594.0,1593.8,1.531]
[1744551030690,13.739,1594.0,1593.8,7.80513]
[1744551030921,13.739,1594.0,1593.8,7.80515]
[1744551031224,12.54833,1593.9,1593.6,1.6567]
[1744551031388,6.27412,1593.9,1593.6,7.93166]
[1744551031826,6.11,1594.0,1593.9,6.27391]
[1744551032122,6.11,1594.0,1593.9,7.93061]
[1744551032422,6.11,1594.3,1594.2,6.27273]
[1744551032720,6.13,1594.4,1594.3,6.27234]
[1744551033022,6.13,1594.4,1594.3,7.92904]
[1744551033522,6.13,1594.4,1594.3,8.47904]
[1744551035021,0.02,1594.4,1594.3,8.47904]
[1744551035326,0.02,1594.4,1594.3,10.0962253]
[1744551035889,0.02,1594.4,1594.3,10.56696197]
[1744551036188,0.02,1594.4,1594.3,9.5462253]
[1744551036392,0.02,1594.4,1594.3,1.6567]
[1744551036592,0.02,1594.4,1594.3,7.92904]
[1744551037328,0.02,1594.4,1594.3,8.47904]
[1744551037623,0.02,1594.4,1594.3,8.54174451]
[1744551037842,0.02,1594.4,1594.3,8.47904]
[1744551038020,0.02,1594.4,1594.3,10.62743206]
[1744551038956,0.02,1594.4,1594.3,13.62743206]
[1744551040832,0.02,1594.4,1594.3,3.80509206]
[1744551041155,0.02,1594.4,1594.3,6.27234]
[1744551041356,0.02,1594.4,1594.3,7.91504]
[1744551041512,0.02,1594.4,1594.3,8.46504]
[1744551042857,0.02,1594.4,1594.2,6.27258]
[1744551043375,0.02,1594.4,1594.1,1.6427]
[1744551043582,0.02,1594.4,1594.0,6.27337]
[1744551043583,6.27245,1594.3,1594.0,6.27337]
[1744551043929,13.98788,1594.4,1594.1,6.27308]
[1744551044167,6.27255,1594.3,1594.0,0.83073086]
[1744551044680,20.25978,1594.4,1594.0,7.10413086]
[1744551044830,6.27254,1594.3,1594.0,0.83073086]
[1744551045180,12.54509,1594.3,1594.0,0.83073086]
[1744551045379,12.54509,1594.3,1593.9,14.0943]
[1744551045545,12.54507,1594.3,1593.9,14.0943]
[1744551045878,12.54507,1594.3,1593.9,7.82051]
[1744551046086,7.7156,1594.4,1593.8,6.27423]
[1744551046087,6.27307,1594.2,1593.8,6.27423]
[1744551046238,6.27321,1594.1,1593.8,6.27423]
[1744551046436,6.27371,1594.0,1593.7,0.793166]
[1744551046651,12.54753,1594.0,1593.7,0.793166]
[1744551047042,6.27395,1593.9,1593.5,7.82222]
[1744551047250,6.2751,1593.6,1593.3,6.40602]
[1744551047769,12.3851,1593.6,1593.3,6.40602]
[1744551047931,12.3851,1593.6,1593.4,0.640602]
[1744551048533,6.11,1593.6,1593.4,0.70335568]
[1744551048731,6.11,1593.6,1593.3,0.1298]
[1744551048930,6.27568,1593.5,1593.3,0.1298]
[1744551049129,12.38524,1593.6,1593.3,0.1298]
[1744551049558,6.11,1593.6,1593.3,6.4059]
[1744551049759,6.11,1593.6,1593.4,6.27587]
[1744551050062,6.11,1593.6,1593.4,13.88266967]
[1744551050260,12.38527,1593.6,1593.4,1.268174]
[1744551050468,6.11,1593.6,1593.3,6.46879371]
[1744551050643,6.11,1593.6,1593.4,6.27584]
[1744551050839,6.11,1593.6,1593.3,6.46879371]
[1744551051064,6.11,1593.6,1593.3,12.68211]
[1744551051232,6.11,1593.6,1593.5,0.55]
[1744551051666,6.11,1593.6,1593.5,7.508058]
[1744551052075,6.11,1593.6,1593.5,1.232568]
[1744551052369,6.11,1593.6,1593.3,0.1298]
[1744551052541,6.2755,1593.5,1593.3,0.1298]
[1744551053560,13.9649,1593.5,1593.3,0.1298]
[1744551053741,13.72888,1593.4,1593.3,0.1298]
[1744551054456,19.83888,1593.4,1593.3,0.1298]
[1744551054672,22.83888,1593.4,1593.3,0.1298]
[1744551056069,24.41828,1593.4,1593.3,0.1298]
[1744551057953,10.85686,1593.0,1592.9,0.0304]
[1744551058286,24.42086,1593.0,1592.9,0.0304]
[1744551058600,24.42086,1593.0,1592.2,6.28057]
[1744551058601,1.6331,1592.5,1592.2,6.28057]
[1744551058762,9.0871,1592.5,1592.2,7.687812]
[1744551058957,9.0871,1592.5,1592.2,13.968272]
[1744551059741,13.7343,1592.8,1592.3,0.06279525]
[1744551060090,13.73455,1592.8,1592.5,6.27939]
[1744551060375,6.11,1592.8,1592.7,6.27864]
[1744551060551,6.11,1592.9,1592.7,6.27864]
[1744551060892,6.11,1592.9,1592.8,6.27825]
[1744551061099,7.456,1593.0,1592.9,6.27785]
[1744551061260,67.39,1593.2,1592.7,0.55]
[1744551061596,67.39,1593.2,1593.1,6.27706]
[1744551061979,59.934,1593.2,1593.1,6.27706]
[1744551062199,59.934,1593.2,1593.1,7.683443]
[1744551062381,6.11,1593.2,1593.1,7.683443]
[1744551062679,7.456,1593.4,1593.1,7.683263]
[1744551062981,13.566,1593.4,1593.2,6.27652]
[1744551063182,13.566,1593.4,1593.1,1.406383]
[1744551063365,19.84205,1593.4,1593.0,14.064]
[1744551063568,13.566,1593.4,1593.1,0.55]
[1744551063765,13.566,1593.4,1593.2,6.27638]
[1744551064167,13.566,1593.4,1593.3,6.27628]
[1744551064561,6.11,1593.4,1593.3,6.27628]
[1744551065384,6.11,1593.4,1593.3,7.531546]
[1744551066068,6.11,1593.4,1593.3,9.587646]
[1744551066489,7.456,1593.7,1593.6,6.2751]
[1744551066660,6.11,1593.8,1593.5,6.27531]
[1744551066865,6.11,1593.8,1593.5,6.27542]
[1744551067065,6.11,1593.8,1593.5,7.530546]
[1744551067585,6.11,1593.8,1593.5,13.805856]
[1744551068002,6.11,1593.8,1593.7,6.2747]
[1744551068372,6.11,1593.8,1593.7,6.8247]
[1744551068697,7.456,1594.0,1593.8,6.27412]
[1744551068900,6.11,1594.2,1594.0,6.27327]
[1744551069100,13.618,1594.3,1594.1,6.82313]
[1744551069666,13.618,1594.3,1594.1,13.09608]
[1744551070078,13.618,1594.3,1594.1,6.82295]
[1744551070286,0.052,1594.3,1594.2,8.41173]
[1744551070505,0.052,1594.3,1594.2,10.507493]
[1744551071717,0.052,1594.3,1594.2,13.57020197]
[1744551071897,0.052,1594.3,1594.2,13.507493]
[1744551072924,0.052,1594.3,1594.2,10.507493]
[1744551073127,0.052,1594.3,1594.2,8.41173]
[1744551073354,0.052,1594.3,1594.2,8.47444284]
[1744551074217,0.052,1594.3,1594.2,8.41173]
[1744551075358,0.052,1594.3,1594.1,6.273]
[1744551075560,0.052,1594.3,1594.2,6.82273]
[1744551075852,0.052,1594.3,1594.2,8.19501511]
[1744551076554,0.052,1594.3,1594.2,8.132303]
[1744551076728,0.052,1594.3,1594.2,0.55]
[1744551076916,0.052,1594.3,1594.2,6.82273]
[1744551078744,0.052,1594.3,1594.1,6.27295]
[1744551079249,0.052,1594.3,1594.2,6.33544902]
[1744551079716,0.052,1594.3,1594.2,6.27273]
[1744551079916,0.052,1594.3,1594.2,7.527298]
[1744551083354,0.052,1594.3,1594.2,7.59001226]
[1744551083757,0.052,1594.3,1594.2,7.59001032]
[1744551083952,0.052,1594.3,1594.2,8.14001032]
[1744551084152,0.052,1594.3,1594.2,9.692698]
[1744551084455,0.052,1594.3,1594.2,12.75540395]
[1744551084957,0.052,1594.3,1594.2,12.692698]
[1744551085754,0.02,1594.4,1594.3,11.43774]
[1744551085941,0.02,1594.4,1594.3,11.0601438]
[1744551086729,1e-05,1594.4,1594.3,11.12283618]
[1744551086933,1e-05,1594.4,1594.3,11.0601438]
[1744551088166,1e-05,1594.4,1594.3,10.5101438]
[1744551089242,1e-05,1594.4,1594.3,11.0601438]
[1744551090461,1e-05,1594.4,1594.3,10.5101438]
[1744551090629,1e-05,1594.4,1594.2,6.27257]
[1744551090957,1e-05,1594.4,1594.3,6.33505413]
[1744551091375,1e-05,1594.4,1594.3,8.40894]
[1744551091662,1e-05,1594.4,1594.3,8.47164429]
[1744551091960,3.8e-06,1594.5,1594.4,11.40855]
[1744551092127,3.8e-06,1594.5,1594.4,12.72032076]
[1744551092559,3.8e-06,1594.5,1594.4,9.72032076]
[1744551093782,3.8e-06,1594.5,1594.4,9.78301374]
[1744551094283,3.8e-06,1594.5,1594.4,9.72032076]
[1744551095590,3.8e-06,1594.5,1594.4,9.78301735]
[1744551096161,3.8e-06,1594.5,1594.4,9.72032076]
[1744551096795,3.8e-06,1594.5,1594.4,9.78301547]
[1744551097676,3.8e-06,1594.5,1594.4,7.11911443]
[1744551097876,3.8e-06,1594.5,1594.3,6.27234]
[1744551097877,1.6577,1594.4,1594.3,6.27231]